Cogmind - Beta 15 @@@ ROGUE MODE // 2025.08.11 @ 03:26:07 Player: naththebg Result: Destroyed by H-77 Assassin with Coil Gun Performance ------------- Evolutions (6) 3000 Regions Visited (18) 3600 Robots Destroyed (230) 1150 Value Destroyed (11736) 11736 Prototype IDs (34) 680 Alien Tech Used (0) 0 Bonus (12293) 12293 TOTAL SCORE: 32459 Bonus ------- Triggered High Security 500 High Alert Combat Kills 2489 Follower Combat Kills 5004 Entered Garrisons 1000 Used RIF Installer 3000 Aligned with FarCom 300 Cogmind --------- Core Integrity 0/1150 Matter 228/300 Energy 72/100 System Corruption 1% Temperature Cool (0) Movement Core (50) Location -4/Factory Parts ------- > --- POWER (1) -------- (None) > --- PROPULSION (5) --- (None) > --- UTILITY (11) ----- Relay Coupler [Grunt] (1) Relay Coupler [Specialist] (19) Relay Coupler [Hunter] (13) Relay Coupler [Behemoth] (2) > --- WEAPON (2) ------- (None) > --- INVENTORY (5) ---- Antigrav System Precision Matter Filter Improved Particle Charger Relay Coupler [Sentry] (22) Relay Coupler [Hunter] (19) Peak State ------------ > --- POWER ------------ Light Antimatter Reactor > --- PROPULSION ------- Improved Antigrav System Antigrav Array Antigrav Array > --- UTILITY ---------- Large Storage Unit Enhanced Optical Array Advanced Powered Armor Relay Coupler [NC] Relay Coupler [Swarmer] Relay Coupler [Grunt] Relay Coupler [Duelist] Relay Coupler [Sentry] Relay Coupler [Hunter] Relay Coupler [Heavy] Relay Coupler [Behemoth] > --- WEAPON ----------- Quantum Rifle Fusion Bomb Launcher > --- INVENTORY -------- Antigrav System Precision Matter Filter Improved Particle Charger Advanced Point Defense System Relay Coupler [NC] Relay Coupler [Sentry] Relay Coupler [Demolisher] Relay Coupler [Specialist] Relay Coupler [Hunter] Relay Coupler [Hunter] Heavy Linear Accelerator Fusion Bomb Launcher Remote Datajack [Rating: 114] Favorites ----------- Power Reinforced Ion Engine Engine Reinforced Ion Engine Power Core Light Fission Core Reactor Particle Reactor Propulsion Light Treads Treads Light Treads Leg Flexi-carbon Leg Hover Unit Antigrav Array Flight Unit VTOL Module Utility Large Storage Unit Device Improved Heat Sink Storage Large Storage Unit Processor Machine Analyzer Hackware Relay Coupler [Swarmer] Protection Improved Light Armor Plating Weapon Advanced Beam Rifle Energy Gun Advanced Beam Rifle Energy Cannon Advanced Beam Cannon Ballistic Gun Assault Rifle Ballistic Cannon Heavy Linear Accelerator Launcher Rocket Launcher Special Weapon Remote Datajack Impact Weapon Heavy Flail Slashing Weapon Axe Build | -11 -10 -10 -9 -9 -9 -8 -8 -7 -7 -7 -7 -6 -6 -6 -6 -5 -5 -4 ------- Run | Yrd Mat Min Mat Min Exi Min Mat Fac Gar Fac Gar Fac Gar Fac Gar Fac Gar Fac Slots Evolved 12 | . . . 2 . . . 2 2 . . . 2 . . . 2 . 2 Power . | . . . . . . . . . . . . . . . . . . . Propulsion 3 | . . . 1 . . . 1 . . . . 1 . . . . . . Utility 9 | . . . 1 . . . 1 2 . . . 1 . . . 2 . 2 Weapon . | . . . . . . . . . . . . . . . . . . . Parts Attached 161 | 6 4 . 18 3 . 1 16 4 22 3 6 5 33 9 8 6 4 13 Power 17 | 1 1 . 2 . . . 2 1 2 . 1 1 3 1 1 . . 1 Engine 12 | 1 1 . 2 . . . 2 1 2 . 1 . 1 1 . . . . Core 3 | . . . . . . . . . . . . 1 2 . . . . . Reactor 2 | . . . . . . . . . . . . . . . 1 . . 1 Propulsion 47 | 2 1 . 7 1 . 1 6 1 3 1 2 1 14 2 2 2 . 1 Treads 23 | 2 1 . 7 1 . 1 2 . . . . . 9 . . . . . Leg 1 | . . . . . . . . . . . . . 1 . . . . . Wheel . | . . . . . . . . . . . . . . . . . . . Hover 21 | . . . . . . . 4 1 3 1 2 1 2 2 2 2 . 1 Flight 2 | . . . . . . . . . . . . . 2 . . . . . Utility 67 | 1 2 . 5 . . . 4 2 14 1 1 3 12 2 4 3 4 9 Device 8 | . 1 . 2 . . . 1 1 2 . . . . . . . . 1 Storage 3 | 1 1 . . . . . . . . . . . . 1 . . . . Processor 5 | . . . . . . . 1 . . . . 2 . . . . . 2 Hackware 42 | . . . 1 . . . 1 . 12 1 1 1 8 1 4 2 4 6 Protection 9 | . . . 2 . . . 1 1 . . . . 4 . . 1 . . Artifact . | . . . . . . . . . . . . . . . . . . . Weapon 30 | 2 . . 4 2 . . 4 . 3 1 2 . 4 4 1 1 . 2 Energy Gun 7 | . . . . . . . 3 . 1 . . . 1 2 . . . . Energy Cannon 1 | . . . 1 . . . . . . . . . . . . . . . Ballistic Gun 9 | 2 . . 2 1 . . . . . 1 . . 2 . . 1 . . Ballistic Cannon 2 | . . . . . . . . . . . 1 . . . . . . 1 Launcher 5 | . . . 1 1 . . 1 . . . . . 1 1 . . . . Special Weapon 3 | . . . . . . . . . 1 . 1 . . . 1 . . . Impact Weapon 1 | . . . . . . . . . . . . . . 1 . . . . Slashing Weapon 2 | . . . . . . . . . 1 . . . . . . . . 1 Piercing Weapon . | . . . . . . . . . . . . . . . . . . . Special Melee Weapon . | . . . . . . . . . . . . . . . . . . . Unidentified Prototypes 7 | . . . 2 . . . 2 . 1 . . . . 1 . . . 1 Parts Lost 59 | . 2 . . . . . 4 . 3 2 . 8 12 4 2 . . 22 Power 7 | . 1 . . . . . 1 . 1 . . . 1 1 . . . 2 Propulsion 25 | . 1 . . . . . 3 . 1 2 . 5 6 1 2 . . 4 Utility 17 | . . . . . . . . . . . . 3 4 1 . . . 9 Weapon 10 | . . . . . . . . . 1 . . . 1 1 . . . 7 Highest Loss Streak 14 | . 1 . . . . . 2 . 1 1 . 8 4 2 1 . . 14 To Critical Strikes 3 | . . . . . . . . . . . . . 1 1 . . . 1 Average Backups 13 | 4 8 9 13 15 14 12 13 13 13 12 12 10 12 13 14 13 14 12 Power . | 1 . . . 1 1 1 . . . 1 1 1 1 . . . . . Propulsion 2 | 2 5 5 4 4 4 4 4 2 2 1 2 . . . . . 1 1 Utility 6 | . 1 2 3 5 4 4 4 5 6 6 6 4 6 9 8 8 9 8 Weapon 3 | 1 1 1 3 4 5 3 4 6 4 2 2 2 2 3 4 4 3 2 Tool/Special . | . . . . . . . . . . . . . . . . . . . Unused Backups 31 | . . . 8 . 2 . 2 1 3 2 1 . 2 1 1 1 1 6 Power . | . . . . . . . . . . . . . . . . . . . Propulsion 9 | . . . 4 . . . 2 . . 2 1 . . . . . . . Utility 16 | . . . 1 . 1 . . . 2 . . . 2 1 1 1 1 6 Weapon 5 | . . . 3 . . . . 1 1 . . . . . . . . . Tool/Special 1 | . . . . . 1 . . . . . . . . . . . . . Average Slot Usage (%) 89 | . 97 100 97 100 77 99 99 93 98 98 98 61 79 78 84 86 87 83 Engine 5 | . 14 14 11 11 11 11 8 5 6 7 7 5 . 1 3 . . . Reactor 1 | . . . . . . . . . . . . . . . 2 5 5 4 Treads 11 | . 28 28 32 33 33 33 27 . . . . . 13 . . . . . Hover 13 | . . . . . . . 8 30 29 28 30 13 4 14 19 17 17 13 Device 4 | . 11 14 5 11 11 11 9 11 6 2 3 6 . . . . . . Storage 7 | . 14 14 11 11 11 11 9 7 7 7 7 6 6 6 6 5 5 4 Hackware 25 | . . . 9 11 11 11 10 15 25 35 33 22 26 38 37 39 41 42 Protection 2 | . . . 5 . . . 4 6 4 . . . 5 . . 4 5 4 Energy Gun 4 | . . . . . . . 5 15 10 6 5 1 4 5 7 4 3 4 Energy Cannon 1 | . . . 7 1 . 11 5 . . . . . . . . . . . Ballistic Gun 5 | . 28 28 13 18 . 10 5 . . . . . 2 . . . 1 . Special Weapon 2 | . . . . . . . . . 3 6 6 1 3 4 4 5 5 4 Peak Build Rating 114 | 6 8 9 20 20 20 24 41 46 59 60 60 67 83 86 88 100 101 114 Average Rating 53 | 3 7 8 16 19 15 21 31 43 52 53 53 41 54 76 82 97 99 104 On Entrance 44 | . 6 8 9 20 20 16 24 35 46 59 54 55 39 78 78 88 100 101 Naked Turns . | . . . . . . . . . . . . . . . . . . . Heaviest Build 74 | 14 30 28 40 38 31 38 49 32 38 40 36 57 46 54 50 68 68 74 Greatest Support 100 | 40 40 40 60 60 60 62 82 32 38 47 47 45 100 62 61 64 64 64 Greatest Overweight (x) 11 | 2 . . . . . . 5 1 9 1 1 2 2 1 . 1 1 11 Average Overweight (x) . | . . . . . . . . . . . . . . . . . . . Largest Inventory Capacity 15 | 8 15 15 15 15 15 15 15 15 15 15 15 15 15 15 15 15 15 15 Average Capacity 14 | 7 14 15 15 15 15 15 15 15 15 15 15 15 15 15 15 15 15 14 Most Carried 15 | 8 11 14 15 15 15 15 15 15 15 15 15 15 15 15 15 15 15 15 Average Carried 13 | 5 8 12 14 15 14 13 14 14 14 14 14 11 13 14 14 13 14 13 Final Capacity 15 | 8 15 15 15 15 15 15 15 15 15 15 15 15 15 15 15 15 15 5 Final Carried 15 | 6 9 14 15 15 15 15 15 15 15 15 14 15 15 13 15 15 15 5 Class Distribution -------------------- 38% | Bothacker-Mutant 22% | Scavenger-Mutant 21% | Botlord-Mutant 10% | Mutant 6% | Hacker-Mutant Dominant Class ---------------- Mutant | -10/Materials Mutant | -10/Mines Scavenger-Mutant | -9/Materials Scavenger-Mutant | -9/Mines Scavenger-Mutant | -9/Exiles Scavenger-Mutant | -8/Mines Scavenger-Mutant | -8/Materials Hacker-Mutant | -7/Factory Bothacker-Mutant | -7/Garrison Bothacker-Mutant | -7/Factory Bothacker-Mutant | -7/Garrison Bothacker-Mutant | -6/Factory Bothacker-Mutant | -6/Garrison Bothacker-Mutant | -6/Factory Bothacker-Mutant | -6/Garrison Botlord-Mutant | -5/Factory Botlord-Mutant | -5/Garrison Botlord-Mutant | -4/Factory Resources | -11 -10 -10 -9 -9 -9 -8 -8 -7 -7 -7 -7 -6 -6 -6 -6 -5 -5 -4 ----------- Run | Yrd Mat Min Mat Min Exi Min Mat Fac Gar Fac Gar Fac Gar Fac Gar Fac Gar Fac Matter Collected 6254 | 260 427 36 608 96 64 2 470 13 667 178 381 133 921 569 278 150 351 650 Remotely . | . . . . . . . . . . . . . . . . . . . Salvage Created 8900 | . 564 50 1089 214 . 2 1009 13 1037 428 611 70 973 985 359 183 315 998 Parts 410 | . 29 4 73 22 . 1 54 3 44 28 24 1 39 32 13 6 10 27 Haulers Intercepted 8 | . 1 . 1 . . . 2 . . 1 . . . 1 . . . 2 Recyclers Shooed 11 | . 1 . . . . 1 1 . . 4 . . . 3 . . . 1 Parts Field Recycled . | . . . . . . . . . . . . . . . . . . . Retrieved Matter . | . . . . . . . . . . . . . . . . . . . Parts Self-Destructed . | . . . . . . . . . . . . . . . . . . . Prevented . | . . . . . . . . . . . . . . . . . . . Kills | -11 -10 -10 -9 -9 -9 -8 -8 -7 -7 -7 -7 -6 -6 -6 -6 -5 -5 -4 ------- Run | Yrd Mat Min Mat Min Exi Min Mat Fac Gar Fac Gar Fac Gar Fac Gar Fac Gar Fac Combat Hostiles Destroyed 170 | . 11 3 25 8 . . 17 . 20 6 6 4 18 13 8 5 7 19 Melee 4 | . . . 2 . . . . . . . . . . . . . 2 . Guns 81 | . 11 3 11 4 . . 3 . 8 6 1 . 18 2 5 3 4 2 Cannons 31 | . . . 12 . . . 5 . . . 5 4 . 2 . . . 3 AOE 51 | . . . . 4 . . 6 . 12 . . . . 9 3 2 1 14 Classes Destroyed 21 | . 4 1 4 2 . . 3 . . . 1 . . 1 . . 1 4 Worker 11 | . . . 1 . . 1 1 . . 1 . . . 5 . . . 2 Builder 7 | . . . . . . . 5 . . 1 . . . 1 . . . . Tunneler 3 | . . . . 1 . . 1 1 . . . . . . . . . . Hauler 8 | . 1 . 1 . . . 2 . . 1 . . . 1 . . . 2 Recycler 10 | . . . 1 . . . 2 . . 1 . . . 5 . . . 1 Carrier 1 | . . . . . . . . . . . . . . . . . . 1 Mechanic 1 | . . . . . . . . . . . . . . 1 . . . . Operator 8 | . 2 . 2 . . . 2 . . . . . . 1 . . . 1 Watcher 8 | . 1 . 1 . . . 3 . . 1 . . . 1 . . . 1 Swarmer 41 | . . 3 6 4 . . 3 . 11 1 . . 4 8 . 1 . . Saboteur 3 | . . . . . . . . . . . . . . . . . 2 1 Grunt 78 | . 11 . 13 2 . . 8 . 7 3 5 4 7 3 3 3 5 4 Brawler 4 | . . . 1 1 . . . . 1 . . . . . . . . 1 Duelist 2 | . . . . 1 . . . . 1 . . . . . . . . . Protector 3 | . . . . . . . . . . . . . . . . . . 3 Sentry 14 | . . . 5 . . . 4 . . . . . 4 . 1 . . . Specialist 3 | . . . . . . . . . . . 1 . . . 1 . . 1 Hunter 10 | . . . . . . . 1 . . 1 1 . 4 1 . 1 . 1 Programmer 12 | . . . . . . . 1 . 1 1 . . . 1 3 . . 5 Heavy 1 | . . . . . . . . . . . . . . . . . . 1 Striker 2 | . . . . . . . . . . . . . . . . . . 2 Best Kill Streak 17 | . 6 3 6 5 . 1 7 1 5 4 4 3 6 13 3 3 3 17 Combat Bots Only 10 | . 6 3 6 4 . . 3 . 5 2 4 3 6 7 3 3 3 10 Max Kills in Single Turn 11 | . 1 2 1 3 . 1 3 1 2 1 1 1 1 6 3 1 1 11 Gunslinging 1 | . . 1 . . . . . . . . . . . . . . . . Exploded 5 | . . . . 3 . . 2 . 2 . . . . 4 3 1 1 5 Melee 1 | . . . 1 . . . . . . . . . . . . . 1 . Uniques/NPCs Destroyed . | . . . . . . . . . . . . . . . . . . . Combat | -11 -10 -10 -9 -9 -9 -8 -8 -7 -7 -7 -7 -6 -6 -6 -6 -5 -5 -4 -------- Run | Yrd Mat Min Mat Min Exi Min Mat Fac Gar Fac Gar Fac Gar Fac Gar Fac Gar Fac Hostile Shots Fired 1112 | . 49 9 94 13 . . 114 14 52 23 25 48 267 61 59 25 8 251 Missed 361 | . 13 2 27 7 . . 31 2 21 10 7 12 79 20 27 8 5 90 Hits 751 | . 36 7 67 6 . . 83 12 31 13 18 36 188 41 32 17 3 161 Melee 3 | . . . . . . . . . . . . . . . . . . 3 Projectile 748 | . 36 7 67 6 . . 83 12 31 13 18 36 188 41 32 17 3 158 AOE 4 | . . . . . . . . . . . . . . . . . . 4 Critical Strikes 30 | . . . 1 1 . . 1 3 . . 1 . 4 1 . 4 1 13 Damage Taken 12653 | . 549 61 782 61 . . 1102 242 500 162 292 689 2404 758 517 486 118 3930 Core 2474 | . 97 8 164 12 . . 210 60 50 14 41 56 308 129 53 100 . 1172 Absorbed by Shields 837 | . . . . . . . . . 10 . . . . . . . 4 823 Ignored by Resistances 95 | . . . . . . . 95 . . . . . . . . . . . Regen/Repaired (Parts) 1206 | . . . . . . . . . . 75 . . 227 14 191 50 38 611 Core Remaining (%) 68 | 100 . 58 . . . 56 61 . . . 76 . . . 35 . 90 . Volleys Fired 867 | . 60 3 91 10 . . 92 7 107 38 78 26 66 52 63 34 44 96 Largest 2 | . 2 2 2 2 . . 2 2 2 1 1 1 2 2 2 1 1 1 Hottest 149 | . 40 40 91 46 . . 122 122 122 61 70 70 94 146 149 94 94 94 Shots Fired 1235 | . 120 6 172 18 . . 160 13 141 56 78 26 146 54 71 34 44 96 Gun 879 | . 120 6 104 16 . . 100 13 111 46 56 3 129 28 52 23 36 36 Cannon 180 | . . . 67 . . . 46 . . . 13 22 . 15 . . . 17 Launcher 60 | . . . 1 2 . . 14 . 17 . . . 1 5 2 3 3 12 Special 116 | . . . . . . . . . 13 10 9 1 16 6 17 8 5 31 Kinetic 464 | . 120 6 104 16 . . 34 . . 18 13 22 86 15 . 5 8 17 Thermal 595 | . . . 67 . . . 112 13 111 28 56 3 43 28 52 18 28 36 Explosive 60 | . . . 1 2 . . 14 . 17 . . . 1 5 2 3 3 12 Electromagnetic . | . . . . . . . . . . . . . . . . . . . Robot Hit Streak 52 | . 9 5 17 7 . . 11 3 52 10 25 4 27 16 11 10 8 10 Robot Miss Streak 8 | . 4 1 5 1 . . 4 8 3 3 3 6 8 2 4 1 2 5 Penetration Max . | . . . . . . . . . . . . . . . . . . . Secondary Targets 3 | . 1 1 . 1 . . . . . . . . . . . . . . Max Gunslinging Chain 1 | . 1 1 . 1 . . . . . . . . . . . . . . Autonomous 77 | . . . . . . . . . . 18 . . 59 . . . . . Shots Hit Robots 799 | . 76 5 119 11 . . 97 4 87 39 63 14 115 35 34 23 22 55 Core Hits 447 | . 31 3 44 13 . . 47 1 54 15 22 4 68 25 17 16 13 74 Critical Kills 4 | . . . . 1 . . 2 . . . . . 1 . . . . . Critical Parts Destroyed 3 | . 1 . . . . . . . . . . . 1 1 . . . . Critical Strikes 32 | . 1 . . 1 . . 7 . 7 4 4 3 2 2 . . . 1 Burn 20 | . . . . . . . 5 . 7 4 4 . . . . . . . Meltdown 2 | . . . . . . . 2 . . . . . . . . . . . Destroy 4 | . 1 . . 1 . . . . . . . . 2 . . . . . Blast 5 | . . . . . . . . . . . . 3 . 1 . . . 1 Smash 1 | . . . . . . . . . . . . . . 1 . . . . Melee Attacks 18 | . . . . . . . . . 6 . . . . 4 . . 4 4 Thermal 4 | . . . . . . . . . . . . . . . . . . 4 Impact 8 | . . . . . . . . . . . . . . 4 . . 4 . Slashing 6 | . . . . . . . . . 6 . . . . . . . . . Piercing . | . . . . . . . . . . . . . . . . . . . Sneak Attacks 2 | . . . . . . . . . . . . . . 2 . . . . Combat Hostiles . | . . . . . . . . . . . . . . . . . . . Follow-up Attacks . | . . . . . . . . . . . . . . . . . . . Damage Inflicted 29813 | . 966 63 2062 428 . 32 2817 90 2570 876 1645 1049 2681 3379 870 1125 895 8265 Guns 12078 | . 961 63 1028 158 . . 1203 90 1490 876 995 20 2585 456 529 465 532 627 Cannons 4991 | . . . 995 . . . 744 . . . 650 1029 . 767 . . . 806 Explosions 12421 | . . . 20 257 . . 867 . 1080 . . . 96 1905 341 660 363 6832 Melee 251 | . . . . . . . . . . . . . . 251 . . . . Ramming 72 | . 5 . 19 13 . 32 3 . . . . . . . . . . . Kinetic 8557 | . 961 63 1028 158 . . 358 . . 516 650 1029 2137 767 . 67 17 806 Thermal 11156 | . . . 995 . . . 1589 90 1490 360 995 20 448 900 529 398 515 2827 Explosive 9777 | . . . 20 257 . . 867 . 1080 . . . 96 1461 341 660 363 4632 Electromagnetic . | . . . . . . . . . . . . . . . . . . . Impact 251 | . . . . . . . . . . . . . . 251 . . . . Slashing . | . . . . . . . . . . . . . . . . . . . Piercing . | . . . . . . . . . . . . . . . . . . . Highest Corruption 5 | . 5 5 1 1 1 1 2 . 1 1 3 . 1 1 1 . . 1 Average Corruption 1 | . 4 5 1 1 1 1 1 . 1 1 1 . 1 1 1 . . 1 Corruption Purged 1 | . . . . . . . . . 1 . . . . . . . . . Corruption Blocked . | . . . . . . . . . . . . . . . . . . . Effects 80 | . 24 6 3 7 3 2 . . 3 1 5 . 16 3 6 . . 1 Message Errors 16 | . 3 2 . 2 . . . . 1 1 2 . 3 . 1 . . 1 Matter Fused 26 | . 6 2 . 3 2 1 . . 1 . . . 8 . 3 . . . Heat Flow Errors 11 | . 4 1 2 . . . . . . . . . 2 . 2 . . . Energy Discharges 9 | . 2 1 . . . 1 . . . . 1 . 2 2 . . . . Parts Fused 3 | . 2 . 1 . . . . . . . . . . . . . . . Data Loss (minor) 9 | . 4 . . 1 1 . . . . . 1 . 1 1 . . . . Data Loss (major) 1 | . 1 . . . . . . . . . . . . . . . . . Misfires 1 | . 1 . . . . . . . . . . . . . . . . . Alerts 2 | . . . . 1 . . . . . . 1 . . . . . . . Weapon Failures 2 | . 1 . . . . . . . 1 . . . . . . . . . Overload Shots . | . . . . . . . . . . . . . . . . . . . Overflow Damage 1586 | . . . 11 40 . . 27 . 10 . 97 168 . 686 5 5 . 537 Projectiles 569 | . . . 11 . . . 10 . . . 97 168 . 228 . . . 55 Explosions 826 | . . . . 40 . . 17 . 10 . . . . 267 5 5 . 482 Melee 191 | . . . . . . . . . . . . . . 191 . . . . Knockbacks 22 | . . . . . . . . . . . 4 9 . 8 . . . 1 Impact 3 | . . . . . . . . . . . . . . 3 . . . . Kinetic 18 | . . . . . . . . . . . 4 8 . 5 . . . 1 Secondary 1 | . . . . . . . . . . . . 1 . . . . . . Self-Inflicted Damage 241 | . . . . . . . 26 . 51 . . . . 48 79 19 . 18 Shots 7 | . . . . . . . 1 . 2 . . . . 1 1 1 . 1 Rammed 12 | . 2 . 4 3 . 2 1 . . . . . . . . . . . Targets Rammed 16 | . 2 . 6 3 . 3 2 . . . . . . . . . . . Kicked . | . . . . . . . . . . . . . . . . . . . Crushed 4 | . . . 2 . . 1 1 . . . . . . . . . . . Highest Temperature 410 | . 279 169 410 . . . 185 36 294 75 235 298 207 238 307 276 322 325 Average Temperature 80 | . 99 93 98 . . . 47 15 76 28 87 138 50 58 79 108 107 95 Received Heat Transfer 2370 | . 228 . 327 18 . . 324 . 99 15 60 324 498 111 51 9 9 297 Effects 9 | . . . 2 . . . . . . . 1 . . 1 2 . 2 1 Energy Bleed 3 | . . . 2 . . . . . . . . . . . . . 1 . Interference 4 | . . . . . . . . . . . 1 . . 1 2 . . . Short Circuit 2 | . . . . . . . . . . . . . . . . . 1 1 Siege Activations . | . . . . . . . . . . . . . . . . . . . Martial Activations . | . . . . . . . . . . . . . . . . . . . Shielding Activations . | . . . . . . . . . . . . . . . . . . . Robots Disrupted . | . . . . . . . . . . . . . . . . . . . Combat Hostiles . | . . . . . . . . . . . . . . . . . . . Robots Corrupted 3 | . . . . . . . . . . . . . . 3 . . . . Combat Hostiles . | . . . . . . . . . . . . . . . . . . . Parts Fried 8 | . . . . . . . . . . . . . . 8 . . . . Impact Corruptions 4 | . . . . . . . . . . . . . . 4 . . . . Robots Melted 5 | . . . . . . . 4 . . . . . . 1 . . . . Combat Hostiles 3 | . . . . . . . 3 . . . . . . . . . . . Parts Melted 33 | . . . . . . . 11 . 4 2 1 . 1 4 6 1 2 1 Heat Transferred 17054 | . . . 1813 . . . 3219 148 3256 962 2109 37 777 892 680 481 666 2014 Parts Sabotaged . | . . . . . . . . . . . . . . . . . . . Parts Stolen . | . . . . . . . . . . . . . . . . . . . Parts Stripped . | . . . . . . . . . . . . . . . . . . . Power Chain Reactions . | . . . . . . . . . . . . . . . . . . . Alert | -11 -10 -10 -9 -9 -9 -8 -8 -7 -7 -7 -7 -6 -6 -6 -6 -5 -5 -4 ------- Run | Yrd Mat Min Mat Min Exi Min Mat Fac Gar Fac Gar Fac Gar Fac Gar Fac Gar Fac Maximum Alert Level 5 | . 1 . 1 . . . 1 . 3 2 3 1 4 3 5 4 5 5 Low Security (%) 32 | 100 98 100 98 100 . 100 75 100 8 . . . 4 . . . . . Level 1 12 | . 1 . 1 . . . 24 . 42 2 35 100 14 . . . . . Level 2 18 | . . . . . . . . . 18 97 44 . 25 95 10 . . . Level 3 17 | . . . . . . . . . 29 . 20 . 51 4 34 35 6 29 Level 4 13 | . . . . . . . . . . . . . 4 . 46 64 54 33 Level 5 4 | . . . . . . . . . . . . . . . 8 . 38 5 High Security 1 | . . . . . . . . . . . . . . . . . . 30 Max Security . | . . . . . . . . . . . . . . . . . . . Peak Influence 2039 | . 206 60 237 154 . 5 315 107 1081 615 724 380 1108 819 1604 1358 1894 2039 Initial 994 | . . . . 70 . . . 107 1 567 383 380 174 581 569 842 945 994 Average 610 | . 64 17 77 81 . . 116 55 513 472 491 309 666 565 1166 1101 1546 1432 Influence Increases 11220 | . 327 70 717 204 . 5 910 5 1210 469 431 109 1154 808 1095 734 1109 1863 Destroy 0b10 Robot/C 4660 | . 220 60 500 160 . . 340 . 520 200 300 80 600 340 400 200 320 420 Destroy 0b10 Robot/NC 375 | . 20 . 30 5 . 5 80 5 20 55 15 . . 85 . 5 . 50 Destroy Leader 680 | . 64 10 134 30 . . 100 . 30 40 40 20 30 76 20 30 . 56 Allied During Kill 1599 | . . . . . . . . . 66 96 67 . 112 52 291 233 315 367 Successful Hack 90 | . 7 . 12 . . . 11 . . 12 . . 14 6 14 . 14 . Select Force Hacks 90 | . . . . . . . 30 . . 30 . . . . . . . 30 Disable Machine 645 | . . . 15 . . . 45 . . 30 . . . 90 15 150 15 285 Anti-Garrison Action 1450 | . . . . . . . 150 . 400 . . . 300 . 250 . 200 150 Destroy Structure 1421 | . 1 . 11 9 . . 79 . 174 6 9 9 68 129 105 86 245 490 Partial Spotted 30 | . . . . . . . . . . . . . . 30 . . . . Lose Combat Pursuer 180 | . 15 . 15 . . . 75 . . . . . 30 . . 30 . 15 Influence Decreases 9271 | . 327 70 537 372 12 5 672 241 131 1002 255 584 295 1103 304 988 565 1808 Entered New Map 4190 | . . . . 110 12 . . 131 1 514 165 344 75 527 244 762 405 900 Time Decay 2718 | . 285 70 387 262 . 5 311 110 . 278 . 140 . 386 . 206 . 278 Lost Part 580 | . 10 . . . . . 40 . 30 20 . 80 120 40 20 . . 220 Lost Ally 980 | . . . . . . . . . 100 40 90 20 100 . 40 20 160 410 Purge Threat 803 | . 32 . 150 . . . 321 . . 150 . . . 150 . . . . Squads Dispatched 47 | . 4 . 3 . . . 7 . . 2 . 3 . 4 . 4 . 20 Investigation 6 | . 1 . . . . . 1 . . 1 . 1 . . . 1 . 1 Extermination 5 | . . . . . . . . . . 1 . . . 2 . 1 . 1 Reinforcement 17 | . 3 . 3 . . . 3 . . . . 1 . 1 . 1 . 5 Assault 14 | . . . . . . . 2 . . . . . . . . 1 . 11 Garrison 5 | . . . . . . . 1 . . . . 1 . 1 . . . 2 Intercept . | . . . . . . . . . . . . . . . . . . . Searches Triggered . | . . . . . . . . . . . . . . . . . . . Construction Impeded 3 | . . . . . . . 1 . . . . . . 1 . . . 1 Haulers Reinforced 2 | . . . . . . . . . . . . . . . . 1 . 1 Active Scanning Responses . | . . . . . . . . . . . . . . . . . . . Cargo Convoy Interrupts 1 | . . . . . . . . . . . . . . . . . . 1 Alert ID Control Effect 75 | . . . . . . . . . . . . . . . 1 10 9 55 Stealth | -11 -10 -10 -9 -9 -9 -8 -8 -7 -7 -7 -7 -6 -6 -6 -6 -5 -5 -4 --------- Run | Yrd Mat Min Mat Min Exi Min Mat Fac Gar Fac Gar Fac Gar Fac Gar Fac Gar Fac Distress Signals 17 | . 1 . 3 1 . . 7 . . 1 . . . . . 1 . 3 Communications Jammed . | . . . . . . . . . . . . . . . . . . . Distress Signals . | . . . . . . . . . . . . . . . . . . . Times Spotted 411 | . 32 3 37 8 . . 34 1 32 17 14 5 36 19 22 22 30 99 Peak Tracking Total 19 | . 4 3 5 4 . . 7 1 4 3 6 4 12 6 4 7 10 19 Tactical Retreats 8 | . 1 . 1 . . . 3 . . . . . 1 . . 1 . 1 Traps | -11 -10 -10 -9 -9 -9 -8 -8 -7 -7 -7 -7 -6 -6 -6 -6 -5 -5 -4 ------- Run | Yrd Mat Min Mat Min Exi Min Mat Fac Gar Fac Gar Fac Gar Fac Gar Fac Gar Fac Traps Triggered 34 | . 4 . 1 . . . . . 10 . . . 1 6 4 1 7 . Indirectly . | . . . . . . . . . . . . . . . . . . . Trap Hack Attempts . | . . . . . . . . . . . . . . . . . . . Triggered . | . . . . . . . . . . . . . . . . . . . Disarmed . | . . . . . . . . . . . . . . . . . . . Reprogrammed . | . . . . . . . . . . . . . . . . . . . Reused . | . . . . . . . . . . . . . . . . . . . Traps Extracted . | . . . . . . . . . . . . . . . . . . . Installed 3 | . . . 3 . . . . . . . . . . . . . . . Triggered . | . . . . . . . . . . . . . . . . . . . Most Traps Carried 3 | . . 3 3 . . . . . . . . . . . . . . . Machines | -11 -10 -10 -9 -9 -9 -8 -8 -7 -7 -7 -7 -6 -6 -6 -6 -5 -5 -4 ---------- Run | Yrd Mat Min Mat Min Exi Min Mat Fac Gar Fac Gar Fac Gar Fac Gar Fac Gar Fac Machines Disabled 65 | . . . 2 . . . 4 . 6 2 . . 5 6 4 10 6 20 Max in Single Turn 6 | . . . 1 . . . 1 . 2 1 . . 1 3 1 2 1 6 Garrison Access 2 | . . . . . . . 1 . . . . . . . . . . 1 Garrison Relay 14 | . . . . . . . . . 4 . . . 4 . 3 . 3 . Phase Generator 2 | . . . . . . . . . 1 . . . . . . . 1 . Machines Repaired . | . . . . . . . . . . . . . . . . . . . Machines Dismantled . | . . . . . . . . . . . . . . . . . . . Machines Sabotaged . | . . . . . . . . . . . . . . . . . . . Overloaded Fab Kills . | . . . . . . . . . . . . . . . . . . . Hacking | -11 -10 -10 -9 -9 -9 -8 -8 -7 -7 -7 -7 -6 -6 -6 -6 -5 -5 -4 --------- Run | Yrd Mat Min Mat Min Exi Min Mat Fac Gar Fac Gar Fac Gar Fac Gar Fac Gar Fac Machines Accessed 46 | . 5 . 4 . 2 . 7 1 1 6 2 1 1 7 3 1 4 1 Terminals 31 | . 4 . 3 . . . 6 . 1 4 2 . 1 3 3 . 4 . Fabricators . | . . . . . . . . . . . . . . . . . . . Repair Stations 1 | . . . . . . . . . . 1 . . . . . . . . Recycling Units 5 | . 1 . 1 . . . . . . . . . . 3 . . . . Scanalyzers . | . . . . . . . . . . . . . . . . . . . Garrison Access 7 | . . . . . . . 1 1 . 1 . 1 . 1 . 1 . 1 Total Hacks 127 | . 10 . 12 . 24 . 25 2 3 12 5 5 1 14 5 1 6 2 Successful 69 | . 3 . 5 . 24 . 15 2 . 5 . 1 1 6 2 1 2 2 Failed 57 | . 7 . 7 . . . 9 . 3 7 5 4 . 8 3 . 4 . Catastrophic 12 | . 2 . 2 . . . . . . 2 . 1 . 2 1 . 2 . Database Lockouts 1 | . . . . . . . 1 . . . . . . . . . . . Manual 40 | . 1 . 6 . 1 . 19 1 . 3 . 4 . 4 . . . 1 Terminals 76 | . 8 . 10 . . . 22 . 3 9 5 . 1 7 5 . 6 . Fabricators . | . . . . . . . . . . . . . . . . . . . Repair Stations 1 | . . . . . . . . . . 1 . . . . . . . . Recycling Units 9 | . 2 . 2 . . . . . . . . . . 5 . . . . Scanalyzers . | . . . . . . . . . . . . . . . . . . . Garrison Access 17 | . . . . . . . 3 2 . 2 . 5 . 2 . 1 . 2 Terminal Hacks 49 | . 3 . 4 . 24 . 10 . . 2 . . 1 1 2 . 2 . Record 23 | . . . . . 23 . . . . . . . . . . . . . Robot Analysis 1 | . . . . . . . . . . 1 . . . . . . . . Prototype ID Bank 2 | . . . . . . . 2 . . . . . . . . . . . Open Door 1 | . . . . . . . . . . . . . . . 1 . . . Emergency Access Points 1 | . . . . . . . . . . . . . . . 1 . . . Terminal Index 1 | . . . . . . . 1 . . . . . . . . . . . Garrison Index 1 | . . . . . . . 1 . . . . . . . . . . . Alert Level 4 | . 1 . 1 . . . 2 . . . . . . . . . . . Unreport Threat 7 | . 1 . 1 . . . 3 . . 1 . . . 1 . . . . Locate Traps 2 | . . . 2 . . . . . . . . . . . . . . . Registered Components 1 | . 1 . . . . . . . . . . . . . . . . . Zone Layout 1 | . . . . . . . 1 . . . . . . . . . . . Garrison Registry 2 | . . . . . . . . . . . . . 1 . . . 1 . Security Stations 1 | . . . . . . . . . . . . . . . . . 1 . Proto ID Catalog 1 | . . . . . 1 . . . . . . . . . . . . . Fabricator Hacks . | . . . . . . . . . . . . . . . . . . . Repair Station Hacks . | . . . . . . . . . . . . . . . . . . . Recycling Unit Hacks 2 | . . . . . . . . . . . . . . 2 . . . . Process 1 | . . . . . . . . . . . . . . 1 . . . . Retrieve Matter 1 | . . . . . . . . . . . . . . 1 . . . . Scanalyzer . | . . . . . . . . . . . . . . . . . . . Garrison Access Hacks 7 | . . . . . . . 1 1 . 1 . 1 . 1 . 1 . 1 Unlock Access 7 | . . . . . . . 1 1 . 1 . 1 . 1 . 1 . 1 Unauthorized Hacks 11 | . . . 1 . . . 4 1 . 2 . . . 2 . . . 1 Terminals 5 | . . . 1 . . . 2 . . . . . . 2 . . . . Assimilate 1 | . . . . . . . . . . . . . . 1 . . . . Botnet 3 | . . . 1 . . . 2 . . . . . . . . . . . Operators 1 | . . . . . . . . . . . . . . 1 . . . . Fabricators . | . . . . . . . . . . . . . . . . . . . Repair Stations 1 | . . . . . . . . . . 1 . . . . . . . . Mechanics 1 | . . . . . . . . . . 1 . . . . . . . . Recycling Units . | . . . . . . . . . . . . . . . . . . . Scanalyzers . | . . . . . . . . . . . . . . . . . . . Garrison Access 5 | . . . . . . . 2 1 . 1 . . . . . . . 1 Restock 2 | . . . . . . . 1 1 . . . . . . . . . . Eject 3 | . . . . . . . 1 . . 1 . . . . . . . 1 Data Cores Recovered 1 | . . . . . . . . . . . . . . 1 . . . . Used . | . . . . . . . . . . . . . . . . . . . Hacking Detections 40 | . 5 . 4 . . . 7 1 1 5 2 1 . 6 2 1 4 1 Full Trace Events 3 | . . . 1 . . . . . 1 . . 1 . . . . . . Feedback Events 1 | . . . . . . . . . . . . 1 . . . . . . Corruption 1 | . . . . . . . . . . . . 1 . . . . . . Feedback Blocked . | . . . . . . . . . . . . . . . . . . . Robot Schematics Acquired . | . . . . . . . . . . . . . . . . . . . Robots Built . | . . . . . . . . . . . . . . . . . . . Authchips . | . . . . . . . . . . . . . . . . . . . Time . | . . . . . . . . . . . . . . . . . . . Total Robot Build Rating . | . . . . . . . . . . . . . . . . . . . Part Schematics Acquired . | . . . . . . . . . . . . . . . . . . . Parts Built . | . . . . . . . . . . . . . . . . . . . Authchips . | . . . . . . . . . . . . . . . . . . . Time . | . . . . . . . . . . . . . . . . . . . Total Part Build Rating . | . . . . . . . . . . . . . . . . . . . Parts Repaired . | . . . . . . . . . . . . . . . . . . . Time . | . . . . . . . . . . . . . . . . . . . Parts Recycled . | . . . . . . . . . . . . . . . . . . . Recycled Matter 13 | . . . . . . . . . . . . . . 13 . . . . Retrieved Matter 13 | . . . . . . . . . . . . . . 13 . . . . Retrieved Components . | . . . . . . . . . . . . . . . . . . . Parts Scanalyzed . | . . . . . . . . . . . . . . . . . . . Part Schematics Acquired . | . . . . . . . . . . . . . . . . . . . Parts Damaged . | . . . . . . . . . . . . . . . . . . . Bothacking | -11 -10 -10 -9 -9 -9 -8 -8 -7 -7 -7 -7 -6 -6 -6 -6 -5 -5 -4 ------------ Run | Yrd Mat Min Mat Min Exi Min Mat Fac Gar Fac Gar Fac Gar Fac Gar Fac Gar Fac Used RIF Installer 6 | . . . . . . . . . 1 . 1 . 1 . 2 . 1 . Coupler Efficiency 1 | . . . . . . . . . . . 1 . . . . . . . Hotswap 1 | . . . . . . . . . . . . . 1 . . . . . Command Fork 1 | . . . . . . . . . . . . . . . . . 1 . Alert ID Control 1 | . . . . . . . . . . . . . . . 1 . . . Autoassimilate 1 | . . . . . . . . . . . . . . . 1 . . . Robots Hacked 78 | . . . . . . . . . 9 6 3 1 7 3 9 9 10 21 Non-combat 15 | . . . . . . . . . . 4 . 1 1 2 . 3 . 4 Combat 63 | . . . . . . . . . 9 2 3 . 6 1 9 6 10 17 Autoassimilated 13 | . . . . . . . . . . . . . . . . 3 6 4 Robot Hacks Applied 73 | . . . . . . . . . 9 8 5 1 8 4 9 7 4 18 parse_system 2 | . . . . . . . . . . 1 . 1 . . . . . . no_distress 1 | . . . . . . . . . . 1 . . . . . . . . start_evac 1 | . . . . . . . . . . . 1 . . . . . . . find_chute 1 | . . . . . . . . . . . . . . . . 1 . . drop_inventory 5 | . . . . . . . . . . 1 . . . 1 . 2 . 1 recall_reinforcements 1 | . . . . . . . . . . . . . . . . 1 . . locate_stockpiles 1 | . . . . . . . . . . . . . . 1 . . . . redirect_shields 1 | . . . . . . . . . . . . . . . . . . 1 find_garrison 4 | . . . . . . . . . . 1 . . . . . 1 . 2 broadcast_data 1 | . . . . . . . . . . . . . . . . . . 1 disrupt_area 3 | . . . . . . . . . . . . . . . . . 1 2 spike_heat 1 | . . . . . . . . . . . . . . . . . 1 . overload_power 1 | . . . . . . . . . . . . . . . . . . 1 disable_weapons 2 | . . . . . . . . . . . . . . . . 1 . 1 reboot_system 1 | . . . . . . . . . . . . . 1 . . . . . go_dormant 1 | . . . . . . . . . . . . . 1 . . . . . overwrite_iff 10 | . . . . . . . . . 1 . 2 . 1 . 4 1 1 . formatsys_low 6 | . . . . . . . . . . 2 1 . 1 1 . . . 1 formatsys_high 30 | . . . . . . . . . 8 2 1 . 4 1 5 . 1 8 Relay Couplers Released 74 | . . . . . . . 7 . 20 3 . . 16 . 12 3 10 3 Ejected 10 | . . . . . . . 4 . . 3 . . . . . . . 3 Machine Destruction 54 | . . . . . . . . . 16 . . . 16 . 12 . 10 . Programmers 10 | . . . . . . . 3 . 4 . . . . . . 3 . . Attached 39 | . . . . . . . . . 11 1 1 1 8 1 4 2 4 6 Fabnet Peak Effective % . | . . . . . . . . . . . . . . . . . . . Robots Rewired 11 | . . . . . . . . . 3 . . . 2 . 6 . . . Allies Hacked 2 | . . . . . . . . . . . 1 . . . . . . 1 Hacks Repelled . | . . . . . . . . . . . . . . . . . . . Allies | -11 -10 -10 -9 -9 -9 -8 -8 -7 -7 -7 -7 -6 -6 -6 -6 -5 -5 -4 -------- Run | Yrd Mat Min Mat Min Exi Min Mat Fac Gar Fac Gar Fac Gar Fac Gar Fac Gar Fac Total Allies 75 | . . . . . . . . . 12 4 3 . 8 2 17 3 10 16 Largest Group 21 | . . . . . . . . . 6 8 8 1 6 4 15 17 20 21 Highest-Rated Group 1051 | . . . . . . . . . 124 164 181 32 198 121 595 645 882 1051 Highest-Rated Ally 142 | . . . . . . . . . 40 40 37 32 43 43 85 85 95 142 Total Orders 40 | . . . . . . . . . . 5 5 . 1 8 13 1 5 2 STAY 12 | . . . . . . . . . . . . . . 4 6 . 2 . FOLLOW 6 | . . . . . . . . . . 1 . . . 1 3 . 1 . AID 22 | . . . . . . . . . . 4 5 . 1 3 4 1 2 2 Ally Attacks 707 | . . . . . . . . . 57 52 45 2 44 23 80 63 94 247 Total Damage 23712 | . . . . . . . . . 632 834 1162 68 1479 737 2242 1928 2577 12053 Kills 164 | . . . . . . . . . 6 11 10 . 12 7 13 18 20 67 Allies Corrupted 1 | . . . . . . . . . . . . . . . . . . 1 Allies Melted 1 | . . . . . . . . . . . . . . . . . . 1 Intel | -11 -10 -10 -9 -9 -9 -8 -8 -7 -7 -7 -7 -6 -6 -6 -6 -5 -5 -4 ------- Run | Yrd Mat Min Mat Min Exi Min Mat Fac Gar Fac Gar Fac Gar Fac Gar Fac Gar Fac Active Infowar (turns) 1776 | . 898 243 118 . . . . . 47 . . 9 189 . . . . 272 Optics 272 | . . . . . . . . . . . . . . . . . . 272 Structural 1306 | . 898 243 118 . . . . . 47 . . . . . . . . . Machine Analysis 198 | . . . . . . . . . . . . 9 189 . . . . . Robot Analysis Total 1 | . . . . . . . . . . 1 . . . . . . . . Derelict Logs Recovered 1 | . . . . 1 . . . . . . . . . . . . . . Drone Launches . | . . . . . . . . . . . . . . . . . . . Drone Recoveries . | . . . . . . . . . . . . . . . . . . . Exploration | -11 -10 -10 -9 -9 -9 -8 -8 -7 -7 -7 -7 -6 -6 -6 -6 -5 -5 -4 ------------- Run | Yrd Mat Min Mat Min Exi Min Mat Fac Gar Fac Gar Fac Gar Fac Gar Fac Gar Fac Turns Passed 14168 | 64 1083 243 1064 569 406 225 1033 238 1557 604 470 290 1632 909 1318 429 1152 882 Spaces Moved 10900 | 45 516 137 409 328 251 135 699 202 1804 452 398 194 1188 1031 949 397 1089 676 Core 66 | 26 . . . . . . . . 2 . . . 27 . . . . 11 Treads 2545 | 19 516 137 409 328 251 135 319 . . . . . 431 . . . . . Legs . | . . . . . . . . . . . . . . . . . . . Wheels . | . . . . . . . . . . . . . . . . . . . Hover 8237 | . . . . . . . 380 202 1802 452 398 194 678 1031 949 397 1089 665 Flight 52 | . . . . . . . . . . . . . 52 . . . . . Fastest Speed 38 | 50 160 160 160 160 160 155 38 40 40 43 43 42 56 52 52 52 52 50 Average Speed 80 | 108 160 160 160 160 160 159 93 52 47 76 47 97 104 55 52 52 52 57 Slowest Speed 600 | 160 160 160 160 160 160 160 410 106 500 108 103 170 320 110 56 105 105 600 Overloaded Moves . | . . . . . . . . . . . . . . . . . . . Propulsion Burnouts . | . . . . . . . . . . . . . . . . . . . Robots Hopped 1 | . . . . . . . . . . . . . . . . . 1 . Potential Cave-ins . | . . . . . . . . . . . . . . . . . . . Cave-ins Triggered . | . . . . . . . . . . . . . . . . . . . Exploration Rate (%) 42 | 3 64 33 47 74 59 31 59 5 87 13 40 3 72 28 73 12 81 18 Regions Visited 18 Branch Regions 4 Pre-discovered Areas 2 | . . . . 1 1 . . . . . . . . . . . . . Known Exits Taken 5 | . . . . . . . . 1 . 1 . 1 . 1 . 1 . . Unknown Exits Taken 8 | 1 1 1 1 1 1 1 1 . . . . . . . . . . . Scrap Searched 2 | . . . . 2 . . . . . . . . . . . . . . Spaces Dug 128 | . . . . 21 . . 16 . 6 . 1 . . 22 28 1 29 4 Terrain Destroyed 813 | . . . 9 21 . . 91 . 184 5 4 9 41 114 53 34 124 124 Melee 4 | . . . . . . . . . 4 . . . . . . . . . Projectile 57 | . . . . . . . . . 1 5 4 9 7 12 . 3 . 16 AOE 751 | . . . 9 21 . . 91 . 179 . . . 33 102 53 31 124 108 Terrain Rammed . | . . . . . . . . . . . . . . . . . . . Walls Destroyed . | . . . . . . . . . . . . . . . . . . . Machines Disabled . | . . . . . . . . . . . . . . . . . . . Actions | -11 -10 -10 -9 -9 -9 -8 -8 -7 -7 -7 -7 -6 -6 -6 -6 -5 -5 -4 --------- Run | Yrd Mat Min Mat Min Exi Min Mat Fac Gar Fac Gar Fac Gar Fac Gar Fac Gar Fac Total 15164 | 58 652 155 663 353 259 143 909 319 2349 681 598 258 1499 1301 1705 582 1611 1069 Wait 2566 | . 65 12 94 9 . . 80 104 239 168 98 25 142 156 619 136 361 258 Move 10881 | 44 515 136 408 327 250 134 698 201 1803 451 397 194 1187 1030 948 396 1086 676 Hop 1 | . . . . . . . . . . . . . . . . . 1 . Pick Up 114 | 8 5 4 16 . 2 2 6 2 14 9 . 2 22 6 7 2 2 5 Fast Attach 67 | 4 2 . 2 . . . 4 3 6 . 4 2 19 10 4 . 1 6 Attach 64 | 2 2 . . . . 2 3 1 2 7 4 5 14 7 1 2 . 12 Detach 18 | . . . . . 2 . . . 1 . 3 3 3 3 . . . 3 Swap 149 | . . . 20 3 . 1 18 . 32 . 7 1 18 10 11 10 12 6 Drop 125 | . 1 . 23 1 5 1 6 1 17 7 7 . 28 13 6 2 4 3 Fire 867 | . 60 3 91 10 . . 92 7 107 38 78 26 66 52 63 34 44 96 Melee 18 | . . . . . . . . . 6 . . . . 4 . . 4 4 Ram . | . . . . . . . . . . . . . . . . . . . Kick . | . . . . . . . . . . . . . . . . . . . Crush 16 | . 2 . 6 3 . 3 2 . . . . . . . . . . . Escape Stasis 217 | . . . . . . . . . 102 . . . . 10 9 . 96 . Rewire 58 | . . . . . . . . . 20 1 . . . . 37 . . . Trap 3 | . . . 3 . . . . . . . . . . . . . . . Miscellaneous . | . . . . . . . . . . . . . . . . . . . Route ------- -11/Scrapyard -10/Materials (discovered 3 exits: *Mat x2 / [*Min]) -10/Mines (discovered 2 exits: *Mat / [Sub]) -9/Materials (discovered 2 exits: *Mat / [*Min]) -9/Mines (discovered 3 exits: *Mat x2 / *Exi) -9/Exiles -8/Mines -8/Materials (discovered 2 exits: *Fac x2) -7/Factory -7/Garrison (discovered 4 exits: *Fac x4) -7/Factory -7/Garrison -6/Factory -6/Garrison (discovered 3 exits: *Fac x3) -6/Factory (discovered 3 exits: *Fac / [*Low] / Gar) -6/Garrison (discovered 2 exits: *Fac x2) -5/Factory (discovered 2 exits: [*Upp] / Gar) -5/Garrison (discovered 3 exits: *Fac x3) -4/Factory (discovered 2 exits: [*Res] / [*Upp]) History --------- Turn | Location | Event 19 | -11/Scrapyard | Discovered new exit (range 16) 65 | -11/Scrapyard | Entered Materials 309 | -10/Materials | Build established: Mutant 457 | -10/Materials | Discovered new exit (range 16) 793 | -10/Materials | Discovered new exit (range 11) 874 | -10/Materials | Discovered new exit (range 3) 965 | -10/Materials | Derelicts attacked the area 1148 | -10/Materials | Entered Mines 1198 | -10/Mines | Found a hidden stash of uninstalled traps 1241 | -10/Mines | Discovered new exit (range 11) 1286 | -10/Mines | Found a Scrap Suit stashed away for nefarious purposes 1289 | -10/Mines | Found Scrap Suit 1334 | -10/Mines | Assembled infested the area 1339 | -10/Mines | Assisted by a Guerilla fighting off Assembled 1386 | -10/Mines | Discovered new exit (range 4) 1391 | -10/Mines | Entered Materials 1391 | -9/Materials | Evolved 2 slots: Propulsion x1, Utility x1 1800 | -9/Materials | Build established: Scavenger-Mutant 1873 | -9/Materials | Discovered new exit (range 8) 2147 | -9/Materials | Discovered new exit (range 16) 2455 | -9/Materials | Entered Mines 2475 | -9/Mines | Met a Derelict bent on vengeance 2813 | -9/Mines | Discovered new exit (range 6) 2833 | -9/Mines | Learned location of Zion (-6) 2911 | -9/Mines | Discovered new exit (range 10) 3016 | -9/Mines | Deemed a non-threat by the Exiles lab entrance 3018 | -9/Mines | Discovered new exit (range 5) 3024 | -9/Mines | Entered Exiles 3070 | -9/Exiles | Met 8R-AWN 3098 | -9/Exiles | Met EX-HEX 3142 | -9/Exiles | Met EX-BIN 3164 | -9/Exiles | Aligned with FarCom system 3166 | -9/Exiles | Given EX-Vault access code 3204 | -9/Exiles | Opened EX-Vault 3215 | -9/Exiles | Found AWS/Gauss 3249 | -9/Exiles | Warned to stay clear of 0b10 Research branches 3294 | -9/Exiles | Met EX-DEC 3412 | -9/Exiles | Discovered new exit (range 14) 3430 | -9/Exiles | Left Exiles lab with AWS/Gauss 3430 | -9/Exiles | Entered Mines 3634 | -8/Mines | Discovered new exit (range 14) 3655 | -8/Mines | Entered Materials 3655 | -8/Materials | Evolved 2 slots: Propulsion x1, Utility x1 4548 | -8/Materials | Discovered new exit (range 3) 4635 | -8/Materials | Central database locked down 4648 | -8/Materials | Discovered new exit (range 16) 4661 | -8/Materials | Identified exit to Garrison 4666 | -8/Materials | Garrison activated, responded to threat 4688 | -8/Materials | Entered Factory 4688 | -7/Factory | Evolved 2 slots: Utility x2 4717 | -7/Factory | Build established: Hacker-Mutant 4807 | -7/Factory | Identified exit to Garrison 4926 | -7/Factory | Entered Garrison 4997 | -7/Garrison | Triggered checkpoint 5039 | -7/Garrison | Triggered checkpoint 5121 | -7/Garrison | Triggered checkpoint 5136 | -7/Garrison | Discovered new exit (range 10) 5147 | -7/Garrison | Installed Relay Interface Framework 5232 | -7/Garrison | Discovered new exit (range 11) 5543 | -7/Garrison | Triggered checkpoint 5615 | -7/Garrison | Garrison Relay disabled 5631 | -7/Garrison | Garrison Relay disabled 5708 | -7/Garrison | Triggered checkpoint 5758 | -7/Garrison | Lost 3 allies 5769 | -7/Garrison | Discovered new exit (range 5) 5846 | -7/Garrison | Triggered checkpoint 5860 | -7/Garrison | Triggered checkpoint 5916 | -7/Garrison | Discovered new exit (range 13) 5932 | -7/Garrison | Build established: Bothacker-Mutant 5942 | -7/Garrison | Triggered checkpoint 5949 | -7/Garrison | Garrison Relay disabled 6060 | -7/Garrison | Triggered checkpoint 6088 | -7/Garrison | Triggered checkpoint 6194 | -7/Garrison | Phase Generator disabled 6362 | -7/Garrison | Garrison Relay disabled 6483 | -7/Garrison | Entered Factory 6483 | -7/Factory | Accompanied by 6 allies 7055 | -7/Factory | Identified exit to Garrison 7087 | -7/Factory | Entered Garrison 7087 | -7/Garrison | Accompanied by 7 allies 7096 | -7/Garrison | Expanded RIF knowledge: Coupler Efficiency 7178 | -7/Garrison | P-60 Hacker assimilated allied Machinist 4a 7392 | -7/Garrison | Triggered checkpoint 7399 | -7/Garrison | Triggered checkpoint 7439 | -7/Garrison | Lost 7 allies 7506 | -7/Garrison | Discovered new exit (range 13) 7557 | -7/Garrison | Entered Factory 7557 | -6/Factory | Accompanied by 1 ally 7557 | -6/Factory | Evolved 2 slots: Propulsion x1, Utility x1 7583 | -6/Factory | Garrison activated, responded to threat 7685 | -6/Factory | Lost 8 parts (5n3u) 7847 | -6/Factory | Identified exit to Garrison 7847 | -6/Factory | Entered Garrison 7909 | -6/Garrison | Triggered checkpoint 7914 | -6/Garrison | Garrison Relay disabled 8023 | -6/Garrison | Triggered checkpoint 8509 | -6/Garrison | Triggered checkpoint 8512 | -6/Garrison | Triggered checkpoint 8579 | -6/Garrison | Lost 4 parts (2n1u1w) 8599 | -6/Garrison | Lost 5 allies 8656 | -6/Garrison | Discovered new exit (range 12) 8656 | -6/Garrison | Discovered new exit (range 81) 8656 | -6/Garrison | Discovered new exit (range 44) 8764 | -6/Garrison | Lost 3 parts (2n1u) 8857 | -6/Garrison | Triggered checkpoint 8998 | -6/Garrison | Found Fusion Bomb Launcher 9013 | -6/Garrison | Found Fusion Bomb Launcher 9066 | -6/Garrison | Expanded RIF knowledge: Hotswap 9126 | -6/Garrison | Garrison Relay disabled 9192 | -6/Garrison | Garrison Relay disabled 9259 | -6/Garrison | Triggered checkpoint 9265 | -6/Garrison | Garrison Relay disabled 9479 | -6/Garrison | Entered Factory 9479 | -6/Factory | Accompanied by 2 allies 9770 | -6/Factory | Identified exit to Garrison 9982 | -6/Factory | Discovered new exit (range 6) 10161 | -6/Factory | Core integrity fell below 50% 10264 | -6/Factory | Discovered new exit (range 11) 10346 | -6/Factory | Garrison activated, responded to threat 10375 | -6/Factory | Destroyed 7 combat bots 10388 | -6/Factory | Entered Garrison 10388 | -6/Garrison | Accompanied by 3 allies 10782 | -6/Garrison | Triggered checkpoint 10837 | -6/Garrison | Rescued a captive Derelict 10837 | -6/Garrison | Rescued a captive Derelict 10847 | -6/Garrison | Garrison Relay disabled 10950 | -6/Garrison | Triggered checkpoint 10963 | -6/Garrison | Triggered checkpoint 10970 | -6/Garrison | Triggered checkpoint 11070 | -6/Garrison | Expanded RIF knowledge: Alert ID Control 11112 | -6/Garrison | Discovered new exit (range 11) 11131 | -6/Garrison | Spotted B-75 Beast 11133 | -6/Garrison | Assimilated Beast 5a with formatsys_high 11146 | -6/Garrison | Triggered checkpoint 11162 | -6/Garrison | Found Adv. Powered Armor 11367 | -6/Garrison | Build established: Botlord-Mutant 11414 | -6/Garrison | Garrison Relay disabled 11502 | -6/Garrison | Garrison Relay disabled 11568 | -6/Garrison | Expanded RIF knowledge: Autoassimilate 11578 | -6/Garrison | Discovered new exit (range 14) 11706 | -6/Garrison | Entered Factory 11706 | -5/Factory | Accompanied by 15 allies 11706 | -5/Factory | Evolved 2 slots: Utility x2 11875 | -5/Factory | Discovered new exit (range 15) 12006 | -5/Factory | First assault squad dispatched 12099 | -5/Factory | Identified exit to Garrison 12106 | -5/Factory | P-80 Master assimilated allied Slayer 5d 12135 | -5/Factory | Entered Garrison 12135 | -5/Garrison | Accompanied by 15 allies 12155 | -5/Garrison | Found embedded Infiltrators 12192 | -5/Garrison | Spotted B-75 Beast 12193 | -5/Garrison | Autoassimilated Beast 6a with RIF 12199 | -5/Garrison | Triggered checkpoint 12245 | -5/Garrison | Triggered checkpoint 12250 | -5/Garrison | Lost 3 allies 12285 | -5/Garrison | Discovered new exit (range 12) 12289 | -5/Garrison | Expanded RIF knowledge: Command Fork 12374 | -5/Garrison | Lost 4 allies 12387 | -5/Garrison | Triggered checkpoint 12391 | -5/Garrison | Garrison Relay disabled 12720 | -5/Garrison | Discovered new exit (range 12) 12795 | -5/Garrison | Triggered checkpoint 12799 | -5/Garrison | Garrison Relay disabled 12863 | -5/Garrison | Phase Generator disabled 12985 | -5/Garrison | Discovered new exit (range 14) 13009 | -5/Garrison | Triggered checkpoint 13044 | -5/Garrison | Learned Factory security intel 13075 | -5/Garrison | Garrison Relay disabled 13092 | -5/Garrison | Discovered new exit (range 22) 13092 | -5/Garrison | Discovered new exit (range 68) 13092 | -5/Garrison | Discovered new exit (range 34) 13287 | -5/Garrison | Entered Factory 13287 | -4/Factory | Accompanied by 15 allies 13287 | -4/Factory | Evolved 2 slots: Utility x2 13454 | -4/Factory | Spotted B-86 Titan 13455 | -4/Factory | Assimilated Titan 7a with formatsys_high 13519 | -4/Factory | Identified exit to Garrison 13544 | -4/Factory | Garrison activated, responded to threat 13605 | -4/Factory | Discovered new exit (range 6) 13607 | -4/Factory | Lost 3 allies 13618 | -4/Factory | Discovered new exit (range 13) 13763 | -4/Factory | Lost 3 allies 13787 | -4/Factory | First assault squad dispatched 13847 | -4/Factory | Destroyed Striker 13848 | -4/Factory | Cargo convoy interrupted 13848 | -4/Factory | Spotted Striker 13848 | -4/Factory | Spotted Executioner 13849 | -4/Factory | Spotted B-86 Titan 13855 | -4/Factory | Destroyed Striker 13865 | -4/Factory | Allies destroyed B-86 Titan 13876 | -4/Factory | Destroyed 10 combat bots 13876 | -4/Factory | Allies destroyed Executioner 13888 | -4/Factory | Lost 5 allies 13896 | -4/Factory | High security lockdown imminent 13976 | -4/Factory | High security lockdown engaged 13998 | -4/Factory | Lost 11 allies 14095 | -4/Factory | Garrison activated, responded to threat 14106 | -4/Factory | Lost 5 parts (1n4u) 14117 | -4/Factory | P-70 Sage assimilated allied Smith 5b 14118 | -4/Factory | P-70 Sage assimilated allied Artificer 7a 14146 | -4/Factory | Core integrity fell below 50% 14161 | -4/Factory | Core integrity fell below 20% 14169 | -4/Factory | Destroyed by H-77 Assassin with Coil Gun Last Messages --------------- 14158_ Penetrated by Slug. 14158_ Slug penetrates B-60 Warrior. 14158_ B-60 Warrior destroyed. 14161_ Slug penetrates Wall. 14162_ Slug penetrates Archangel 7a. 14162_ Archangel 7a destroyed. 14163_ The unstable cave ceiling collapses. 14163_ Myomer Leg crushed. 14166_ Smith 5b repairs L-61 Swordsman. 14167_ C-30 ARC bursts open, deploying its payload. 14167_ G-73 Enforcer unfolds itself. 14167_ B-60 Warrior unfolds itself. 14167_ G-67 Veteran unfolds itself. 14167_ L-61 Swordsman unfolds itself. 14167_ I-47 Archangel unfolds itself. 14168_ Smith 5b repairs L-61 Swordsman Microactuators. 14168_ Segregator destroyed. 14169_ Acquired 70 matter. Map ----- +----------------------------------------------------+ | ????# """ # "#???????????????????????????????? | | ????# # ##???????????????????????????????? | | ????# """?# %=%##???????????????????????????????? | | ????# ""??# "#########???????????????????????? | | ????# "???# # #???????????????????????? | | "???# ??# % " """ #???????????????????????? | | ""?####+### " """ #???????????????????????? | | ?""# | " """ #???????????????????????? | | + " #???????????????????????? | | """# " """ #???????????????????????? | | ???###!!! " """ #???????????????????????? | | ?????#!!! % "" """ #???????????????????????? | | ????##!%!![ #???????????????????????? | | ?#### =[!%[ #########???????????????????????? | | !# [![ =# ########????????????????????????? | | % |!= [! = #????????????????????????? | | % !%! #????????????????????????# | | % = #????????????????????### # | | % %= %] # #???????????????????#""""" | | =%% #??????????????????# | | # ## =# = #???????????####??#" | | # ### # %[ #?##????##### ### | | #???### !!= ## #???### * | | ??????### ## ; %# ###### # % | | ????????##?# "[# ]!* ##;##% *% | | ??????? %[% /%h@ lm %!%% ggg% H [ | | ????# % !%==/! % = ! =g[!% # =% | | ????# %!|![=% !==%!l%hg%* | | ????# #####+#;# #= ;;;; # %! #b p C | | ????# ?????? # %i | | ????# ?????"""" " # ; | | ????#??????"""" """ # ### #" | | ???????????"""" """" # #?###T | | ?????????? """" """" # #???""""""""#### | | ????????????? #; #??????????????? | | ????????????""" """" [#??????????????? | | ?????????????"" ??"" #;; #??????????????? | | ??????????????" ???" # ; #??????????????? | | ??????????????" ???" # #;;;;;;;##"??????????????? | | ?????????????? ???? ?### # ####?#??????????????? | | ?????????????? ????? ???######???????????????????? | | ??????????????#??????????????????????????????????? | | ?????????????????????????????????????????????????? | | ?????????????????????????????????????????????????? | | ?????????????????????????????????????????????????? | | ?????????????????????????????????????????????????? | | ?????????????????????????????????????????????????? | | ?????????????????????????????????????????????????? | | ?????????????????????????????????????????????????? | | ?????????????????????????????????????????????????? | +----------------------------------------------------+ Best States ------------- Heat Dissipation 48 Energy Generation 23 Energy Capacity 340 Matter Stores 300 Matter Capacity 300 Sight Range 22 Terrain Scan Density 10 Additional Mass Support 12 Armor Coverage 400 Resistance: KI 20 Evasion (%) 57 Targeting Accuracy 8 Recoil Reduction 5 Offensive Hacking 20 Relay Coupler Types 9 Relay Coupler Value 214 Item Schematics ----------------- None Robot Schematics ------------------ None Fabricated ------------ Nothing Repaired ---------- Nothing Alien Tech Used ----------------- None Achievements -------------- Factory Defaults Pwned Challenges ------------ None Game ------ Seed AntimissileChargeMesh Manual? 0 Play Time 03:09:21 Cumulative 342.4 hours Start 2025.08.11 @ 00:15:14 End 2025.08.11 @ 03:26:07 Sessions 1 Manual Loads 0 Difficulty Rogue Special Mode None Game No. 169 Rogue 169 Adventurer 0 Explorer 0 Win Type - Total 7 Types 4/0/2/0/0/0/0/0/0/1 Lore% 82 Gallery% 82 Achievement% 69 Wizard Run 0 Options --------- Layout 1 ASCII 0 Keyboard 0 Movement Mouse Keybinds 0 Fullscreen 1 Font 24/Smallcaps Map View 50x35 Zoom Use 0% Tactical HUD 1 Map Filters NONE Filters NONE Steam 1 RUN: 00b99688-d91f-4b45-b5ad-f9db5f5586c6